{"text_format":"1","workbook":"xlsx","n_sheets":1,"sheets":["التسجيل"],"not_rendered":{"charts":0,"images":0,"macros":1,"external_links":0,"defined_names":5,"comments":0,"pivot_tables":0},"unopened":[],"bounds":{"document_bytes":16777216,"sheet_cells":100000,"rows_first":2000,"rows_last":500,"rows_between":2000,"halvings":0,"cell_chars":16384,"cell_head_chars":4096},"cells_cut":0,"cells_raw":0,"read":"whole","date_system":"1900"}

{"sheet":"التسجيل","index":0,"n_rows":614,"n_cols":126,"rows_kept":614,"cut":false,"hidden":false,"merged":[[0,6,4,6],[0,5,4,5],[0,18,4,18],[0,17,4,17],[0,16,4,16],[0,15,4,15],[0,0,0,1],[1,0,1,1],[2,0,2,1],[3,0,3,1],[0,14,4,14],[0,13,4,13],[0,12,4,12],[0,11,4,11],[0,10,4,10],[0,9,4,9],[0,8,4,8],[0,7,4,7]]}
["اليوم",null,{"$f":"C2","v":"2023-08-10"},"القوة ",25,{"$f":"VLOOKUP($C$3,$C$600:$M$614,2,0)","v":"إرتداء ملابس السلامة والصحة المهنية "},{"$f":"VLOOKUP($C$3,$C$600:$M$614,3,0)","v":" تجهيز العدد و الأدوات "},{"$f":"VLOOKUP($C$3,$C$600:$M$614,4,0)","v":"التلوين ( مينا على البارد) "},{"$f":"VLOOKUP($C$3,$C$600:$M$614,5,0)","v":"تشغيل الاكسدة"},{"$f":"VLOOKUP($C$3,$C$600:$M$614,6,0)","v":"المط واللميع"},{"$f":"VLOOKUP($C$3,$C$600:$M$614,7,0)","v":"الجودة "},{"$f":"VLOOKUP($C$3,$C$600:$M$614,8,0)","v":"الالتزام "},{"$f":"VLOOKUP($C$3,$C$600:$M$614,9,0)","v":0},{"$f":"VLOOKUP($C$3,$C$600:$M$614,10,0)","v":0},{"$f":"VLOOKUP($C$3,$C$600:$M$614,11,0)","v":0},"ما تم التدريب عليه ","عدد ساعات التدريب","التاريخ","القسم",null,null,null,null,null,null,null,null,null,null,null,null,null,null,null,null,null,null,null,{"$f":"DC1","v":"الكود"},{"$f":"DD1","v":"الاسم"},"الفصل ","التقييم","إرتداء ملابس السلامة والصحة المهنية "," تجهيز العدد و الأدوات ","عملية إستخدام المنشار الأركت -إستحدام المبارد ","تثبيت المشغولة لإجراء عملية البرد","عملية إستخدام اللحام ","مراحل التجميع والتزجة"," تشطيب السبك","درلفة السبائك","تفصيل بلاكات","الالتزام","ما تم التدريب عليه ","عدد ساعات التدريب","التاريخ","القسم",null,null,null,null,null,null,null,null,null,null,null,null,null,null,null,null,null,null,null,null,null,null,null,null,null,null,null,null,null,null,null,null,null,null,null,null,null,null,null,null,null,null,null,null,null,null,null,null,null,null,"الكود","الاسم","الفصل ","التقييم","إرتداء ملابس السلامة والصحة المهنية "," تجهيز العدد و الأدوات ","عملية إستخدام المنشار الأركت -إستحدام المبارد ","تثبيت المشغولة لإجراء عملية البرد","عملية إستخدام اللحام ","مراحل التجميع والتزجة"," تشطيب السبك","درلفة السبائك","تفصيل بلاكات","الالتزام","ما تم التدريب عليه ","عدد ساعات التدريب","التاريخ","القسم",null,"تركيب على المعدن"]
["التاريخ",null,"2023-08-10","الحضور",24,null,null,null,null,null,null,null,null,null,null,null,null,null,null,null,null,null,null,null,null,null,null,null,null,null,null,null,null,null,null,null,null,null,21001,"ايمان عزت محمود","1/1",10,null,10,null,null,null,null,null,null,null,null,null,3,"2023-08-10","تركيب على المعدن",null,null,null,null,null,null,null,null,null,null,null,null,null,null,null,null,null,null,null,null,null,null,null,null,null,null,null,null,null,null,null,null,null,null,null,null,null,null,null,null,null,null,null,null,null,null,null,null,null,null,null,null,null,null,null,null,null,null,null,null,null,null,null,null,null,null,null,"التلوين",null,"التلوين"]
["القسم ",null,"التلوين","الغياب",{"$f":"+E1-E2","v":1},null,null,null,null,null,null,null,null,null,null,null,null,null,null,null,null,null,null,null,null,null,null,null,null,null,null,null,null,null,null,null,null,null,21002,"مريم وليد احمد عطيه","1/1",5,null,5,null,null,null,null,null,null,null,null,null,3,"2023-08-10","تركيب على المعدن"]
["المشرف /المدرب",null,"/","عدد ساعات التدريب",2,null,null,null,null,null,null,null,null,null,null,null,null,null,null,null,null,null,null,null,null,null,null,null,null,null,null,null,null,null,null,null,null,null,21003,"حبيبة حامد فؤاد","1/1",23,null,23,null,null,null,null,null,null,null,null,null,3,"2023-08-10","تركيب على المعدن"]
["م","الكود","الاسم","الفصل ","التقييم",null,null,null,null,null,null,null,null,null,null,null,null,null,null,null,null,null,null,null,null,null,null,null,null,null,null,null,null,null,null,null,null,null,21004,"رضوى ايمن سيد توفيق حسن","1/1",8,null,8,null,null,null,null,null,null,null,null,null,3,"2023-08-10","تركيب على المعدن"]
[1,21001,"ايمان عزت محمود","1/1",{"$f":"IFERROR(SUM(F6:O6)/COUNT(F6:O6),\"\")","v":""},null,null,null,null,null,null,null,null,null,null,null,{"$f":"$E$4","v":2},{"$f":"$C$2","v":"2023-08-10"},{"$f":"$C$3","v":"التلوين"},null,null,null,null,null,null,null,null,null,null,null,null,null,null,null,null,null,null,null,21005,"ايمان يوسف عبيان","1/1",null,null,"غ",null,null,null,null,null,null,null,null,null,3,"2023-08-10","تركيب على المعدن"]
[2,21002,"مريم وليد احمد عطيه","1/1",{"$f":"IFERROR(SUM(F7:O7)/COUNT(F7:O7),\"\")","v":""},null,null,null,null,null,null,null,null,null,null,null,{"$f":"$E$4","v":2},{"$f":"$C$2","v":"2023-08-10"},{"$f":"$C$3","v":"التلوين"},null,null,null,null,null,null,null,null,null,null,null,null,null,null,null,null,null,null,null,21001,"ايمان عزت محمود","1/1",88,88,null,null,null,null,null,null,null,null,null,"اخضر",2,"2023-08-10","التلوين",null,null,null,null,null,null,null,null,null,null,null,null,null,null,null,null,null,null,null,null,null,null,null,null,null,null,null,null,null,null,null,null,null,null,null,null,null,null,null,null,null,null,null,null,null,null,null,null,null,null,{"$f":"DC1","v":"الكود"},{"$f":"DD1","v":"الاسم"},"الفصل ","التقييم","إرتداء ملابس السلامة والصحة المهنية "," تجهيز العدد و الأدوات ","عملية إستخدام المنشار الأركت -إستحدام المبارد ","تثبيت المشغولة لإجراء عملية البرد","عملية إستخدام اللحام ","مراحل التجميع والتزجة"," تشطيب السبك","درلفة السبائك","تفصيل بلاكات","الالتزام","ما تم التدريب عليه ","عدد ساعات التدريب","التاريخ","القسم"]
[3,21003,"حبيبة حامد فؤاد","1/1","",null,null,null,null,null,null,null,null,null,null,null,2,"2023-08-10","التلوين",null,null,null,null,null,null,null,null,null,null,null,null,null,null,null,null,null,null,null,null,null,null,null,null,null,null,null,null,null,null,null,null,null,null,null,null,null,null,null,null,null,null,null,null,null,null,null,null,null,null,null,null,null,null,null,null,null,null,null,null,null,null,null,null,null,null,null,null,null,null,null,null,null,null,null,null,null,null,null,null,null,null,null,null,null,null,null,21001,"ايمان عزت محمود","1/1",88,88,null,null,null,null,null,null,null,null,null,"اخضر",2,"2023-08-10","التلوين"]
[4,21004,"رضوى ايمن سيد توفيق حسن","1/1","",null,null,null,null,null,null,null,null,null,null,null,2,"2023-08-10","التلوين"]
[5,21005,"ايمان يوسف عبيان","1/1","",null,null,null,null,null,null,null,null,null,null,null,2,"2023-08-10","التلوين"]
[6,21006,"رزان احمد محمد محمد","1/1","",null,null,null,null,null,null,null,null,null,null,null,2,"2023-08-10","التلوين"]
[7,21007,"مريم ممدوح على محمد حسن","1/1","",null,null,null,null,null,null,null,null,null,null,null,2,"2023-08-10","التلوين"]
[8,21008,"بسنت احمد حسن احمد","1/1","",null,null,null,null,null,null,null,null,null,null,null,2,"2023-08-10","التلوين"]
[9,21009,"ملك محمد عبدالفتاح ابراهيم","1/1","",null,null,null,null,null,null,null,null,null,null,null,2,"2023-08-10","التلوين"]
[10,21010,"احمد مجدي شاكر","1/1","",null,null,null,null,null,null,null,null,null,null,null,2,"2023-08-10","التلوين"]
[11,21011,"مايا زهير محمد محمد عبدالظاهر","1/1","",null,null,null,null,null,null,null,null,null,null,null,2,"2023-08-10","التلوين"]
[12,21012,"دنيا محمد محمود محمد","1/1","",null,null,null,null,null,null,null,null,null,null,null,2,"2023-08-10","التلوين"]
[13,21013,"مريم أيمن فاروق راغب","1/1","",null,null,null,null,null,null,null,null,null,null,null,2,"2023-08-10","التلوين"]
[14,21014,"فادى نبيل ثابت نجيب","1/1","",null,null,null,null,null,null,null,null,null,null,null,2,"2023-08-10","التلوين"]
[15,21015,"جومانه وليد عبدالفتاح","1/1","",null,null,null,null,null,null,null,null,null,null,null,2,"2023-08-10","التلوين"]
[16,21016,"عمر محمد محمدى بسيونى السيد","1/1","",null,null,null,null,null,null,null,null,null,null,null,2,"2023-08-10","التلوين"]
[17,21017,"شيماء ياسر فكرى حسن","1/1","",null,null,null,null,null,null,null,null,null,null,null,2,"2023-08-10","التلوين"]
[18,21018,"جنه هيثم عبدالعزيز","1/1","",null,null,null,null,null,null,null,null,null,null,null,2,"2023-08-10","التلوين"]
[19,21019,"تقى ياسر سيد","1/1","",null,null,null,null,null,null,null,null,null,null,null,2,"2023-08-10","التلوين"]
[20,21020,"آيه احمد يوسف","1/1","",null,null,null,null,null,null,null,null,null,null,null,2,"2023-08-10","التلوين"]
[21,21021,"هاجر احمد محمد حسن","1/1","",null,null,null,null,null,null,null,null,null,null,null,2,"2023-08-10","التلوين"]
[22,21022,"ساره سالم عبدالنبى سالم سالم","1/1","",null,null,null,null,null,null,null,null,null,null,null,2,"2023-08-10","التلوين"]
[1,21023,"بسمله عادل كمال السيد","2/1","",null,null,null,null,null,null,null,null,null,null,null,2,"2023-08-10","التلوين"]
[2,21024,"جودي شريف عبداللطيف","2/1","",null,null,null,null,null,null,null,null,null,null,null,2,"2023-08-10","التلوين"]
[3,21025,"عمرو ايمن حنفى محمد","2/1","",null,null,null,null,null,null,null,null,null,null,null,2,"2023-08-10","التلوين"]
[4,21026,"ردينه مراد عادل اسماعيل","2/1","",null,null,null,null,null,null,null,null,null,null,null,2,"2023-08-10","التلوين"]
[5,21027,"ملك خفاجي زهير خفاجي غزال","2/1","",null,null,null,null,null,null,null,null,null,null,null,2,"2023-08-10","التلوين"]
[6,21028,"يوسف حسنى عبدالحميد","2/1","",null,null,null,null,null,null,null,null,null,null,null,2,"2023-08-10","التلوين"]
[7,21029,"عبد الرحمن علي سليمان اسماعيل ","2/1","",null,null,null,null,null,null,null,null,null,null,null,2,"2023-08-10","التلوين"]
[8,21030,"مريم محمد حسين احمد","2/1","",null,null,null,null,null,null,null,null,null,null,null,2,"2023-08-10","التلوين"]
[9,21031,"مهند خلاف خلف","2/1","",null,null,null,null,null,null,null,null,null,null,null,2,"2023-08-10","التلوين"]
[10,21032,"حسن محمد حسن","2/1","",null,null,null,null,null,null,null,null,null,null,null,2,"2023-08-10","التلوين"]
[11,21033,"تقى عز الدين مصطفى","2/1","",null,null,null,null,null,null,null,null,null,null,null,2,"2023-08-10","التلوين"]
[12,21034,"احمد فضل محمد","2/1","",null,null,null,null,null,null,null,null,null,null,null,2,"2023-08-10","التلوين"]
[13,21035,"محمد احمد محمد سالم","2/1","",null,null,null,null,null,null,null,null,null,null,null,2,"2023-08-10","التلوين"]
[14,21036,"نور الحسن احمد محمود","2/1","",null,null,null,null,null,null,null,null,null,null,null,2,"2023-08-10","التلوين"]
[15,21037,"ساره خالد سيداحمد صالح ","2/1","",null,null,null,null,null,null,null,null,null,null,null,2,"2023-08-10","التلوين"]
[16,21038,"عبدالله محمود محمد متولى","2/1","",null,null,null,null,null,null,null,null,null,null,null,2,"2023-08-10","التلوين"]
[17,21039,"روان اسامه فرحات فريد السيد ","2/1","",null,null,null,null,null,null,null,null,null,null,null,2,"2023-08-10","التلوين"]
[18,21040,"زياد طارق سيد احمد","2/1","",null,null,null,null,null,null,null,null,null,null,null,2,"2023-08-10","التلوين"]
[19,21041,"بسمله احمد محمد","2/1","",null,null,null,null,null,null,null,null,null,null,null,2,"2023-08-10","التلوين"]
[20,21042,"نور محمد محمد محمد على","2/1","",null,null,null,null,null,null,null,null,null,null,null,2,"2023-08-10","التلوين"]
[21,21043,"محمد سيد عبدالعزيز","2/1","",null,null,null,null,null,null,null,null,null,null,null,2,"2023-08-10","التلوين"]
[22,21044,"بدر  محمد  عبد المنعم","2/1","",null,null,null,null,null,null,null,null,null,null,null,2,"2023-08-10","التلوين"]
[1,21045,"احمد ابراهيم السيد","3/1","",null,null,null,null,null,null,null,null,null,null,null,2,"2023-08-10","التلوين"]
[2,21046,"على معتز عبد المحسن محى الدين ","3/1","",null,null,null,null,null,null,null,null,null,null,null,2,"2023-08-10","التلوين"]
[3,21047,"رؤى اسماعيل اسماعيل عبدالمقصود","3/1","",null,null,null,null,null,null,null,null,null,null,null,2,"2023-08-10","التلوين"]
[4,21048,"نورهان عبدالحليم فتحي","3/1","",null,null,null,null,null,null,null,null,null,null,null,2,"2023-08-10","التلوين"]
[5,21049,"يوسف صلاح كمال","3/1","",null,null,null,null,null,null,null,null,null,null,null,2,"2023-08-10","التلوين"]
[6,21050,"شروق منصور شعبان احمد","3/1","",null,null,null,null,null,null,null,null,null,null,null,2,"2023-08-10","التلوين"]
[7,21051,"انجي عصام عبدالحكيم","3/1","",null,null,null,null,null,null,null,null,null,null,null,2,"2023-08-10","التلوين"]
[8,21052,"مى سيد عبدالحليم","3/1","",null,null,null,null,null,null,null,null,null,null,null,2,"2023-08-10","التلوين"]
[9,21053,"يوسف ابراهيم شعبان","3/1","",null,null,null,null,null,null,null,null,null,null,null,2,"2023-08-10","التلوين"]
[10,21054,"ريهام محمد عبدالوهاب محمد","3/1","",null,null,null,null,null,null,null,null,null,null,null,2,"2023-08-10","التلوين"]
[11,21055,"محمد احمد محمد صابر","3/1","",null,null,null,null,null,null,null,null,null,null,null,2,"2023-08-10","التلوين"]
[12,21056,"عمر محمد سيد عبد الرحمن","3/1","",null,null,null,null,null,null,null,null,null,null,null,2,"2023-08-10","التلوين"]
[13,21057,"زياد محمد عيسى محمد احمد","3/1","",null,null,null,null,null,null,null,null,null,null,null,2,"2023-08-10","التلوين"]
[14,21058,"ناريمان محمد احمد","3/1","",null,null,null,null,null,null,null,null,null,null,null,2,"2023-08-10","التلوين"]
[15,21059,"محمد جمال عبدالسميع عبدالفتاح","3/1","",null,null,null,null,null,null,null,null,null,null,null,2,"2023-08-10","التلوين"]
[16,21060,"فاطمه علاء ابراهيم محمد عبدالله","3/1","",null,null,null,null,null,null,null,null,null,null,null,2,"2023-08-10","التلوين"]
[17,21061,"الاء محمود سيد","3/1","",null,null,null,null,null,null,null,null,null,null,null,2,"2023-08-10","التلوين"]
[18,21062,"عبدالله محمد محمد نصار","3/1","",null,null,null,null,null,null,null,null,null,null,null,2,"2023-08-10","التلوين"]
[19,21063,"محمد ايمن عيد عربي عيد باظة","3/1","",null,null,null,null,null,null,null,null,null,null,null,2,"2023-08-10","التلوين"]
[20,21064,"محمد خيري مراد تهامي عبدالكريم","3/1","",null,null,null,null,null,null,null,null,null,null,null,2,"2023-08-10","التلوين"]
[21,21065,"احمد عبدالله فوزي","3/1","",null,null,null,null,null,null,null,null,null,null,null,2,"2023-08-10","التلوين"]
[22,21066,"يحيى اسامه محمد","3/1",{"$f":"IFERROR(SUM(F71:O71)/COUNT(F71:O71),\"\")","v":""},null,null,null,null,null,null,null,null,null,null,null,{"$f":"$E$4","v":2},{"$f":"$C$2","v":"2023-08-10"},{"$f":"$C$3","v":"التلوين"}]
[1]
[2]
[3]
[4]
[5]
[6]
[7]
[8]
[9]
[10]
[11,null,null,null,null,null,null,null,null,null,null,null,null,null,null,null,null,null,null,null,null,"                                                                                                                                                                                                                                                                                                                                                                                                                                                                               "]
[12]
[13]
[14]
[15]
[16]
[17]
[18]
[19]
[20]
[21]
[22]
[23]
[1]
[2]
[3]
[4]
[5]
[6]
[7]
[8]
[9]
[10]
[11]
[12]
[13]
[14]
[15]
[16]
[17]
[18]
[19]
[20]
[21]
[22]
[23]
[1]
[2]
[3]
[4]
[5]
[6]
[7]
[8]
[9]
[10]
[11]
[12]
[13]
[14]
[15]
[16]
[17]
[18]
[19]
[20]
[21]
[22]
[23]
[1]
[2]
[3]
[4]
[5]
[6]
[7]
[8]
[9]
[10]
[11]
[12]
[13]
[14]
[15]
[16]
[17]
[18]
[19]
[20]
[21]
[22]
[23]
[1]
[2]
[3]
[4]
[5]
[6]
[7]
[8]
[9]
[10]
[11]
[12]
[13]
[14]
[15]
[16]
[17]
[18]
[19]
[20]
[21]
[22]
[23]
[24]
[25]
[26]
[27]
[1]
[2]
[3]
[4]
[5]
[6]
[7]
[8]
[9]
[10]
[11]
[12]
[13]
[14]
[15]
[16]
[17]
[18]
[19]
[20]
[21]
[22]
[23]
[24]
[25]
[26]
[27]
[1]
[2]
[3]
[4]
[5]
[6]
[7]
[8]
[9]
[10]
[11]
[12]
[13]
[14]
[15]
[16]
[17]
[18]
[19]
[20]
[21]
[22]
[23]
[24]
[25]
[26]
[27]
[1]
[2]
[3]
[4]
[5]
[6]
[7]
[8]
[9]
[10]
[11]
[12]
[13]
[14]
[15]
[16]
[17]
[18]
[19]
[20]
[21]
[22]
[23]
[24]
[25]
[26]
[27]
[1]
[2]
[3]
[4]
[5]
[6]
[7]
[8]
[9]
[10]
[11]
[12]
[13]
[14]
[15]
[16]
[17]
[18]
[19]
[20]
[21]
[22]
[23]
[24]
[25]
[26]
[27]
[1]
[2]
[3]
[4]
[5]
[6]
[7]
[8]
[9]
[10]
[11]
[12]
[13]
[14]
[15]
[16]
[17]
[18]
[19]
[20]
[21]
[22]
[23]
[24]
[25]
[26]
[27]
[1]
[2]
[3]
[4]
[5]
[6]
[7]
[8]
[9]
[10]
[11]
[12]
[13]
[14]
[15]
[16]
[17]
[18]
[19]
[20]
[21]
[22]
[23]
[24]
[25]
[]
[]
[]
[]
[]
[]
[]
[]
[]
[]
[]
[]
[]
[]
[]
[]
[]
[]
[]
[]
[]
[]
[]
[]
[]
[]
[]
[]
[]
[]
[]
[]
[]
[]
[]
[]
[]
[]
[]
[]
[]
[]
[]
[]
[]
[]
[]
[]
[]
[]
[]
[]
[]
[]
[]
[]
[]
[]
[]
[]
[]
[]
[]
[]
[]
[]
[]
[]
[]
[]
[]
[]
[]
[]
[]
[]
[]
[]
[]
[]
[]
[]
[]
[]
[]
[]
[]
[]
[]
[]
[]
[]
[]
[]
[]
[]
[]
[]
[]
[]
[]
[]
[]
[]
[]
[]
[]
[]
[]
[]
[]
[]
[]
[]
[]
[]
[]
[]
[]
[]
[]
[]
[]
[]
[]
[]
[]
[]
[]
[]
[]
[]
[]
[]
[]
[]
[]
[]
[]
[]
[]
[]
[]
[]
[]
[]
[]
[]
[]
[]
[]
[]
[]
[]
[]
[]
[]
[]
[]
[]
[]
[]
[]
[]
[]
[]
[]
[]
[]
[]
[]
[]
[]
[]
[]
[]
[]
[]
[]
[]
[]
[]
[]
[]
[]
[]
[]
[]
[]
[]
[]
[]
[]
[]
[]
[]
[]
[]
[]
[]
[]
[]
[]
[]
[]
[]
[]
[]
[]
[]
[]
[]
[]
[]
[]
[]
[]
[]
[]
[]
[]
[]
[]
[]
[]
[]
[]
[]
[]
[]
[]
[]
[]
[]
[]
[]
[]
[]
[]
[]
[]
[]
[]
[]
[]
[]
[]
[]
[]
[null,null,"تزجة 1","إرتداء ملابس السلامة والصحة المهنية "," تجهيز العدد و الأدوات ","عملية إستخدام المنشار الأركت -إستحدام المبارد ","تثبيت المشغولة لإجراء عملية البرد","عملية إستخدام اللحام ","مراحل التجميع والتزجة"," تشطيب السبك","درلفة السبائك","تفصيل بلاكات","الالتزام",null,null,"تزجة 1"]
[null,null,"تزجة 2","إرتداء ملابس السلامة والصحة المهنية "," تجهيز العدد و الأدوات ","عملية إستخدام المنشار الأركت -إستحدام المبارد ","تثبيت المشغولة لإجراء عملية البرد","عملية إستخدام اللحام ","مراحل التجميع والتزجة"," تشطيب السبك","درلفة السبائك","تفصيل بلاكات","الالتزام",null,null,"تزجة 2"]
[null,null,"تزجة 3","إرتداء ملابس السلامة والصحة المهنية "," تجهيز العدد و الأدوات ","عملية إستخدام المنشار الأركت -إستحدام المبارد ","تثبيت المشغولة لإجراء عملية البرد","عملية إستخدام اللحام ","مراحل التجميع والتزجة"," تشطيب السبك","درلفة السبائك","تفصيل بلاكات","الالتزام",null,null,"تزجة 3"]
[null,null,"تزجة 4","إرتداء ملابس السلامة والصحة المهنية "," تجهيز العدد و الأدوات ","عملية إستخدام المنشار الأركت -إستحدام المبارد ","تثبيت المشغولة لإجراء عملية البرد","عملية إستخدام اللحام ","مراحل التجميع والتزجة"," تشطيب السبك","درلفة السبائك","تفصيل بلاكات","الالتزام",null,null,"تزجة 4"]
[null,null,"الشمع","إرتداء ملابس السلامة والصحة المهنية "," تجهيز العدد و الأدوات ","إستخدام ماكينات حقن الشمع ","كنترول وتنضيف الشمع ","تشجير الشمع ","الجودة","الالتزام ",null,null,null,null,null,"الشمع"]
[null,null,"السبك","إرتداء ملابس السلامة والصحة المهنية "," تجهيز العدد و الأدوات ","عملية الجبس","خلط الجبس","إستخدام الأفران لعملية التحميص","الالتزام ",null,null,null,null,null,null,"السبك"]
[null,null,"التركيب","إرتداء ملابس السلامة والصحة المهنية "," تجهيز العدد و الأدوات ","التركيب على الشمع ","معرفة مقاسات الأحجار وبيانات الموديل","طرق تنفيذ التركيب على الشمع ","إستخدام أدوات التركيب على الشمع ","الالتزام ","عدد الاحجار",null,null,null,null,"التركيب"]
[null,null,"التلميع","إرتداء ملابس السلامة والصحة المهنية "," تجهيز العدد و الأدوات ","مراحل التشطيب النهائي ","جلا وتطويق والصنفرة","الالتزام ","عدد القطع ",null,null,null,null,null,null,"التلميع"]
[null,null,"التلوين","إرتداء ملابس السلامة والصحة المهنية "," تجهيز العدد و الأدوات ","التلوين ( مينا على البارد) ","تشغيل الاكسدة","المط واللميع","الجودة ","الالتزام ",null,null,null,null,null,"التلوين"]
[null,null,"تركيب على المعدن","إرتداء ملابس السلامة والصحة المهنية "," تجهيز العدد و الأدوات ","التركيب على الشمع ","معرفة مقاسات الأحجار وبيانات الموديل","طرق تنفيذ التركيب على الشمع ","إستخدام أدوات التركيب على الشمع ","الالتزام ","عدد الاحجار",null,null,null,null,"تركيب على المعدن"]
[null,null,"ورشة مقترحة 1","مقترح 1","مقترح 1","مقترح 1","مقترح 1","مقترح 1","مقترح 1","مقترح 1","مقترح 1","مقترح 1","مقترح 1",null,null,"ورشة مقترحة 1"]
[null,null,"ورشة مقترحة 2","مقترح 2","مقترح 2","مقترح 2","مقترح 2","مقترح 2","مقترح 2","مقترح 2","مقترح 2","مقترح 2","مقترح 2",null,null,"ورشة مقترحة 2"]
[null,null,"ورشة مقترحة 3","مقترح 3","مقترح 3","مقترح 3","مقترح 3","مقترح 3","مقترح 3","مقترح 3","مقترح 3","مقترح 3","مقترح 3",null,null,"ورشة مقترحة 3"]
[null,null,"ورشة مقترحة 4","مقترح 4","مقترح 4","مقترح 4","مقترح 4","مقترح 4","مقترح 4","مقترح 4","مقترح 4","مقترح 4","مقترح 4",null,null,"ورشة مقترحة 4"]
[null,null,"ورشة مقترحة 5","مقترح 5","مقترح 5","مقترح 5","مقترح 5","مقترح 5","مقترح 5","مقترح 5","مقترح 5","مقترح 5","مقترح 5",null,null,"ورشة مقترحة 5"]